bitfinex/quotes_BTCUSD_20240623
["timestamp","ask_amount","ask_price","bid_price","bid_amount"]
[1719152395406,0.80322604,64312.0,64311.0,0.27512225]
[1719152395546,0.78907055,64312.0,64311.0,0.27512225]
[1719152395746,0.51957955,64312.0,64311.0,0.27512225]
[1719152395955,0.52957955,64312.0,64311.0,0.27512225]
[1719152396168,0.68507055,64312.0,64311.0,0.27512225]
[1719152396363,0.59205107,64312.0,64311.0,0.27512225]
[1719152396586,0.72435107,64312.0,64311.0,0.27512225]
[1719152396996,0.59205107,64312.0,64311.0,0.27512225]
[1719152397490,0.70832543,64312.0,64311.0,0.27512225]
[1719152397880,0.80832543,64312.0,64311.0,0.27512225]
[1719152398298,0.79835938,64312.0,64311.0,0.27512225]
[1719152398699,1.10470569,64312.0,64311.0,0.27512225]
[1719152399339,1.66212064,64312.0,64311.0,0.11256113]
[1719152399736,1.66022389,64312.0,64311.0,0.100935]
[1719152400769,1.72232389,64312.0,64311.0,0.100935]
[1719152400960,1.72188307,64312.0,64311.0,0.100935]
[1719152401163,1.66978307,64312.0,64311.0,0.100935]
[1719152401394,1.67978307,64312.0,64311.0,0.100935]
[1719152401646,1.65978307,64312.0,64311.0,0.100935]
[1719152402077,1.66978307,64312.0,64311.0,0.100935]
[1719152402663,1.65978307,64312.0,64311.0,0.100935]
[1719152402819,1.65978307,64312.0,64311.0,0.000935]
[1719152403617,1.55119444,64312.0,64311.0,0.000935]
[1719152403831,1.6600981,64312.0,64311.0,0.000935]
[1719152406552,1.55119444,64312.0,64311.0,0.000935]
[1719152406786,1.66186836,64312.0,64311.0,0.000935]
[1719152408369,1.66208094,64312.0,64311.0,0.000935]
[1719152409680,1.66200783,64312.0,64311.0,0.000935]
[1719152410802,0.777555,64304.0,64303.0,0.0521]
[1719152411005,1.0581537,64304.0,64303.0,0.0521]
[1719152411204,1.0681537,64304.0,64303.0,0.06329385]
[1719152411386,0.99836839,64304.0,64303.0,0.0521]
[1719152411594,0.98836839,64304.0,64303.0,0.09603]
[1719152412000,1.05512283,64304.0,64303.0,0.09603]
[1719152412201,1.12490462,64304.0,64303.0,0.09603]
[1719152412404,1.12490462,64304.0,64303.0,0.09703]
[1719152412405,1.06112283,64304.0,64303.0,0.09703]
[1719152412681,1.0200858,64304.0,64303.0,0.09703]
[1719152412789,1.06245382,64304.0,64303.0,0.09703]
[1719152413647,1.13222563,64304.0,64303.0,0.09703]
[1719152414237,1.14222563,64304.0,64303.0,0.09718497]
[1719152414452,1.14222196,64304.0,64303.0,0.09718497]
[1719152414676,1.13222196,64304.0,64303.0,0.09718497]
[1719152415048,1.13222152,64304.0,64303.0,0.09718497]
[1719152415455,1.13221882,64304.0,64303.0,0.09718497]
[1719152415663,0.95030944,64304.0,64303.0,0.09718497]
[1719152415867,1.13273303,64304.0,64303.0,0.10837882]
[1719152416418,1.13273238,64304.0,64303.0,0.09718497]
[1719152417389,1.06296621,64304.0,64303.0,0.09718497]
[1719152417897,1.13273238,64304.0,64303.0,0.09718497]
[1719152418152,1.06296621,64304.0,64303.0,0.09718497]
[1719152418555,1.06296621,64304.0,64303.0,0.04508497]
[1719152418768,1.13273238,64304.0,64303.0,0.09718497]
[1719152418943,1.13272785,64304.0,64303.0,0.09718497]
[1719152419483,1.13272785,64304.0,64303.0,0.04508497]
[1719152420128,1.13272785,64304.0,64303.0,0.05627882]
[1719152421137,1.06296621,64304.0,64303.0,0.05627882]
[1719152421483,1.13272294,64304.0,64303.0,0.05627882]
[1719152421904,1.13226977,64304.0,64303.0,0.05627882]
[1719152424805,0.82124777,64304.0,64303.0,0.05627882]
[1719152425008,0.70904027,64304.0,64303.0,0.05627882]
[1719152425243,0.82154107,64304.0,64303.0,0.10837882]
[1719152425366,0.3770118,64304.0,64303.0,0.26093994]
[1719152425569,0.44748482,64304.0,64303.0,0.26093994]
[1719152426477,0.47260115,64304.0,64303.0,0.26093994]
[1719152426842,0.47264076,64304.0,64303.0,0.26093994]
[1719152427636,0.78366276,64304.0,64303.0,0.16490994]
[1719152428043,0.6704004,64304.0,64303.0,0.16490994]
[1719152428217,0.74442485,64304.0,64303.0,0.16490994]
[1719152428420,0.78351496,64304.0,64303.0,0.16490994]
[1719152428627,0.78351496,64304.0,64303.0,0.22633093]
[1719152431280,0.74283792,64304.0,64303.0,0.22633093]
[1719152431483,0.71049775,64304.0,64303.0,0.22633093]
[1719152434370,0.71084153,64304.0,64303.0,0.22633093]
[1719152434603,0.71084153,64304.0,64303.0,0.27843093]
[1719152434836,0.7105094,64304.0,64303.0,0.27843093]
[1719152435291,0.7105094,64304.0,64303.0,0.22633093]
[1719152435950,0.67308652,64304.0,64303.0,0.22633093]
[1719152436182,0.70984064,64304.0,64303.0,0.22633093]
[1719152436423,0.80287401,64304.0,64303.0,0.22633093]
[1719152436870,0.57174035,64304.0,64303.0,0.22633093]
[1719152437202,0.72725135,64304.0,64303.0,0.22633093]
[1719152437474,0.52502667,64304.0,64303.0,0.22633093]
[1719152437712,0.7273009,64304.0,64303.0,0.22633093]
[1719152438663,0.72741658,64304.0,64303.0,0.22633093]
[1719152439622,0.6443603,64304.0,64303.0,0.22633093]
[1719152440350,0.6443603,64304.0,64303.0,0.22633089]
[1719152440585,0.53502667,64304.0,64303.0,0.22633089]
[1719152440839,0.6418507,64304.0,64303.0,0.22633089]
[1719152441746,0.75818258,64304.0,64303.0,0.22633089]
[1719152443191,1.06920458,64304.0,64303.0,0.22633089]
[1719152443390,0.9528727,64304.0,64303.0,0.22633089]
[1719152443603,0.84604867,64304.0,64303.0,0.22633089]
[1719152443797,0.95099052,64304.0,64303.0,0.22633089]
[1719152444001,0.84604867,64304.0,64303.0,0.22633089]
[1719152444203,0.95099047,64304.0,64303.0,0.22633089]
[1719152446913,0.94905195,64304.0,64303.0,0.22633089]
[1719152450027,0.94896249,64304.0,64303.0,0.22633089]
[1719152453092,0.94910391,64304.0,64303.0,0.22633089]
[1719152453504,0.94910275,64304.0,64303.0,0.22633089]
[1719152455501,0.94910275,64304.0,64303.0,0.22726589]
[1719152456110,0.94995275,64304.0,64303.0,0.22726589]
[1719152459021,0.84689867,64304.0,64303.0,0.22726589]
[1719152459268,0.9495559,64304.0,64303.0,0.22726589]
[1719152460391,1.45093234,64304.0,64303.0,0.07470477]
[1719152460597,1.45093234,64304.0,64303.0,0.01328378]
[1719152460804,1.45093234,64304.0,64303.0,0.00208993]
[1719152461166,1.32433234,64304.0,64303.0,0.00208993]
[1719152461578,1.32456743,64304.0,64303.0,0.00208993]
[1719152461737,1.32456743,64304.0,64303.0,0.01750892]
[1719152461939,1.32456779,64304.0,64303.0,0.01750892]
[1719152464607,1.32467424,64304.0,64303.0,0.00208993]
[1719152466096,1.31467424,64304.0,64303.0,0.16288993]
[1719152466331,1.32467424,64304.0,64303.0,0.17403001]
[1719152466696,1.32467424,64304.0,64303.0,0.22073301]
[1719152466915,1.31467424,64304.0,64303.0,0.22073301]
[1719152467233,1.01365224,64304.0,64303.0,0.22073301]
[1719152467789,1.01365224,64304.0,64303.0,0.05993301]
[1719152470579,1.01639969,64304.0,64303.0,0.05993301]
[1719152470946,0.91065311,64304.0,64303.0,0.05993301]
[1719152471147,1.00639904,64304.0,64303.0,0.05993301]
[1719152471497,1.00639904,64304.0,64303.0,0.06533001]
[1719152471498,1.01639904,64304.0,64303.0,0.06533001]
[1719152472126,1.00639904,64304.0,64303.0,0.06533001]
[1719152472336,1.01639904,64304.0,64303.0,0.06533001]
[1719152473623,0.91065311,64304.0,64303.0,0.06533001]
[1719152473874,1.01791409,64304.0,64303.0,0.06533001]
[1719152474172,1.01791409,64304.0,64303.0,0.11160301]
[1719152475249,1.01791409,64304.0,64303.0,0.05950301]
[1719152476398,0.69689209,64304.0,64303.0,0.11160301]
[1719152476649,0.69674524,64304.0,64303.0,0.11160301]
[1719152476848,0.9440128,64304.0,64303.0,0.11160301]
[1719152478057,0.6329908,64304.0,64303.0,0.26416413]
[1719152479595,0.52587667,64304.0,64303.0,0.26416413]
[1719152479804,0.6374907,64304.0,64303.0,0.26416413]
[1719152481156,0.6374907,64304.0,64303.0,0.21206413]
[1719152481304,0.63684277,64304.0,64303.0,0.21206413]
[1719152481509,0.63684277,64304.0,64303.0,0.26416413]
[1719152482527,0.52587667,64304.0,64303.0,0.26416413]
[1719152482742,0.6370964,64304.0,64303.0,0.26416413]
[1719152483439,0.6370964,64304.0,64303.0,0.21206413]
[1719152483638,0.6370964,64304.0,64303.0,0.26416413]
[1719152485719,0.63495807,64304.0,64303.0,0.26416413]
[1719152485846,0.64495807,64304.0,64303.0,0.26416413]
[1719152486036,0.63495807,64304.0,64303.0,0.26416413]
[1719152486852,0.64495807,64304.0,64303.0,0.26416413]
[1719152487061,0.2754424,64304.0,64303.0,0.26416413]
[1719152487259,0.3754424,64304.0,64303.0,0.26416413]
[1719152487496,0.3654424,64304.0,64303.0,0.26416413]
[1719152487899,0.6764644,64304.0,64303.0,0.26416413]
[1719152488658,0.567383,64304.0,64303.0,0.26416413]
[1719152488880,0.67711287,64304.0,64303.0,0.26416413]
[1719152490583,0.36609087,64304.0,64303.0,0.27416417]
[1719152490782,0.39111314,64304.0,64303.0,0.27416417]
[1719152490991,0.39111314,64304.0,64303.0,0.26416417]
[1719152491846,0.39394124,64304.0,64303.0,0.26416417]
[1719152492821,0.23843024,64304.0,64303.0,0.26416417]
[1719152493397,0.23843024,64304.0,64303.0,0.26316417]
[1719152493818,0.23843024,64304.0,64303.0,0.27316417]
[1719152494019,0.35484214,64304.0,64303.0,0.56796417]
[1719152494396,0.23843024,64304.0,64303.0,0.56796417]
[1719152494780,0.23882633,64304.0,64303.0,0.56796417]
[1719152497013,0.23882633,64304.0,64303.0,0.56796416]
[1719152497647,0.23882633,64304.0,64303.0,0.55796416]
[1719152497887,0.12587227,64304.0,64303.0,0.55796416]
[1719152498038,0.24003119,64304.0,64303.0,0.55796416]
[1719152498381,0.33314508,64304.0,64303.0,0.55796416]
[1719152498554,0.33314508,64304.0,64303.0,0.56796416]
[1719152498754,0.12587227,64304.0,64303.0,0.56796416]
[1719152500481,0.02587227,64304.0,64303.0,0.56796416]
[1719152501055,0.23227437,64304.0,64303.0,0.64796416]
[1719152501258,0.33227437,64304.0,64303.0,0.64796416]
[1719152501766,0.33218616,64304.0,64303.0,0.64796416]
[1719152501958,0.25811757,64304.0,64303.0,0.64796416]
[1719152502787,0.33188931,64304.0,64303.0,0.64796416]
[1719152503268,0.33188931,64304.0,64303.0,0.63796416]
[1719152503511,0.23877781,64304.0,64303.0,0.64796416]
[1719152505364,0.23877781,64304.0,64303.0,0.58586416]
[1719152505582,0.23877781,64304.0,64303.0,0.63796416]
[1719152505996,0.30858622,64304.0,64303.0,0.58586416]
[1719152506169,0.30858622,64304.0,64303.0,0.63796416]
[1719152507188,0.30526564,64304.0,64303.0,0.63796416]
[1719152510358,0.19568233,64304.0,64303.0,0.63796416]
[1719152510584,0.30510226,64304.0,64303.0,0.63796416]
[1719152510776,0.2328789,64304.0,64303.0,0.63796416]
[1719152510910,0.30509956,64304.0,64303.0,0.63796416]
[1719152511712,0.30509956,64304.0,64303.0,0.64796416]
[1719152512852,0.30509956,64304.0,64303.0,0.63796416]
[1719152513019,0.2352895,64304.0,64303.0,0.63796416]
[1719152513445,0.12587227,64304.0,64303.0,0.63796416]
[1719152513646,0.12587227,64304.0,64303.0,0.58586416]
[1719152513647,0.23540532,64304.0,64303.0,0.58586416]
[1719152513878,0.23540532,64304.0,64303.0,0.63796416]
[1719152515438,0.23540532,64304.0,64303.0,0.58586416]
[1719152515605,0.23540532,64304.0,64303.0,0.63796416]
[1719152516653,0.23417682,64304.0,64303.0,0.63796416]
[1719152516908,0.38968782,64304.0,64303.0,0.63796416]
[1719152517118,0.38968782,64304.0,64303.0,0.58586416]
[1719152517315,0.27749592,64304.0,64303.0,0.63796416]
[1719152517489,0.28749592,64304.0,64303.0,0.63796416]
[1719152517706,0.27749592,64304.0,64303.0,0.63796416]
[1719152518285,0.28749592,64304.0,64303.0,0.63796416]
[1719152519360,0.59851792,64304.0,64303.0,0.63796416]
[1719152519548,0.576533,64304.0,64303.0,0.63796416]
[1719152519763,0.566533,64304.0,64303.0,0.51026416]
[1719152520003,1.52212374,64304.0,64303.0,0.16479116]
[1719152520429,1.6384763,64304.0,64303.0,0.20575108]
[1719152523358,1.6393263,64304.0,64303.0,0.20575108]
[1719152523567,1.6293263,64304.0,64303.0,0.26269704]
[1719152523772,1.4980263,64304.0,64303.0,0.26269704]
[1719152524949,1.21337374,64304.0,64303.0,0.26269704]
[1719152525151,1.32972589,64304.0,64303.0,0.26269704]
[1719152525399,1.39196956,64304.0,64303.0,0.26269704]
[1719152525601,1.08094756,64304.0,64303.0,0.26269704]
[1719152526475,0.96459541,64304.0,64303.0,0.26269704]
[1719152527266,0.99226231,64304.0,64303.0,0.26269704]
[1719152527917,0.90235174,64304.0,64303.0,0.26269704]
[1719152528121,0.93001864,64304.0,64303.0,0.26269704]
[1719152528325,0.90235174,64304.0,64303.0,0.26269704]
[1719152528545,0.99295641,64304.0,64303.0,0.21059704]
[1719152528722,0.99295641,64304.0,64303.0,0.26269704]
[1719152528938,0.99295641,64304.0,64303.0,0.21661193]
[1719152531204,0.99289153,64304.0,64303.0,0.21661193]
[1719152531642,1.10925059,64304.0,64303.0,0.21661193]
[1719152532679,1.11925059,64304.0,64303.0,0.21661193]
[1719152533103,1.11925059,64304.0,64303.0,0.16451193]
[1719152533507,1.11925059,64304.0,64303.0,0.26633764]
[1719152533752,1.10925059,64304.0,64303.0,0.26633764]
[1719152534262,1.01873247,64304.0,64303.0,0.26633764]
[1719152534486,1.10834756,64304.0,64303.0,0.26633764]
[1719152537271,1.01873816,64304.0,64303.0,0.26633764]
[1719152537480,1.1084202,64304.0,64303.0,0.26633764]
[1719152537917,1.01873832,64304.0,64303.0,0.26633764]
[1719152538097,1.10842032,64304.0,64303.0,0.26633764]
[1719152540201,1.11842032,64304.0,64303.0,0.21423764]
[1719152540440,1.11967582,64304.0,64303.0,0.21423764]
[1719152540670,1.11967582,64304.0,64303.0,0.26633764]
[1719152542067,1.10967582,64304.0,64303.0,0.26633764]
[1719152542486,1.10967582,64304.0,64303.0,0.43013764]
[1719152543285,1.01873733,64304.0,64303.0,0.43013764]
[1719152543484,1.10956384,64304.0,64303.0,0.43013764]
[1719152545247,0.79854184,64304.0,64303.0,0.43013764]
[1719152545819,0.48751984,64304.0,64303.0,0.26633764]
[1719152546019,0.48751984,64304.0,64303.0,0.43013764]
[1719152546229,0.79854184,64304.0,64303.0,0.56443764]
[1719152546431,0.7985188,64304.0,64303.0,0.56443764]
[1719152546845,0.79851976,64304.0,64303.0,0.56443764]
[1719152548085,0.798456,64304.0,64303.0,0.56443764]
[1719152549527,0.7984632,64304.0,64303.0,0.26633764]
[1719152550104,0.4874412,64304.0,64303.0,0.26633764]
[1719152550305,0.7984632,64304.0,64303.0,0.26633764]
[1719152551966,0.7984632,64304.0,64303.0,0.34633764]
[1719152552171,0.7984632,64304.0,64303.0,0.34593764]
[1719152552381,0.68205554,64304.0,64303.0,0.34593764]
[1719152552584,0.59132974,64304.0,64303.0,0.34593764]
[1719152552799,0.6828441,64304.0,64303.0,0.34593764]
[1719152553236,0.3718221,64304.0,64303.0,0.34593764]
[1719152555663,0.3718221,64304.0,64303.0,0.34593767]
[1719152555863,0.37148086,64304.0,64303.0,0.34593767]
[1719152556286,0.37148086,64304.0,64303.0,0.35593767]
[1719152556287,0.21596941,64304.0,64303.0,0.35593767]
[1719152556951,0.21596941,64304.0,64303.0,0.65383767]
[1719152557591,0.21596941,64304.0,64303.0,0.60173767]
[1719152557791,0.21596941,64304.0,64303.0,0.65383767]
[1719152561164,0.21639324,64304.0,64303.0,0.65383767]
[1719152562043,0.21640036,64304.0,64303.0,0.65383767]
[1719152563709,0.21640036,64304.0,64303.0,0.64383767]
[1719152563915,0.21640036,64304.0,64303.0,0.59173767]
[1719152564114,0.21640036,64304.0,64303.0,0.50883767]
[1719152564301,0.33283239,64304.0,64303.0,0.50883767]
[1719152564895,0.21640036,64304.0,64303.0,0.50883767]
[1719152565103,0.33575061,64304.0,64303.0,0.50883767]
[1719152565327,0.12479674,64304.0,64303.0,0.50883767]
[1719152565537,0.33575129,64304.0,64303.0,0.50883767]
[1719152565789,0.31180455,64304.0,64303.0,0.50883767]
[1719152568403,0.31160946,64304.0,64303.0,0.50883767]
[1719152568759,0.31160946,64304.0,64303.0,0.45673767]
[1719152568966,0.31160946,64304.0,64303.0,0.50883767]
[1719152570265,0.31160946,64304.0,64303.0,0.45673767]
[1719152570470,0.31160946,64304.0,64303.0,0.50883767]
[1719152570867,0.31160946,64304.0,64303.0,0.45673767]
[1719152571072,0.31160946,64304.0,64303.0,0.29383767]
[1719152571274,0.31128009,64304.0,64303.0,0.34593767]
[1719152572935,0.31128009,64304.0,64303.0,0.29383767]
[1719152573271,0.31128009,64304.0,64303.0,0.34593767]
[1719152574359,0.19219442,64304.0,64303.0,0.34593767]
[1719152574629,0.30863422,64304.0,64303.0,0.34593767]
[1719152574861,0.30863421,64304.0,64303.0,0.34593767]
[1719152575468,0.46414521,64304.0,64303.0,0.34593767]
[1719152575596,0.30863421,64304.0,64303.0,0.34593767]
[1719152576000,0.30863432,64304.0,64303.0,0.34593767]
[1719152577488,0.10085,64304.0,64303.0,0.34593767]
[1719152577658,0.30967579,64304.0,64303.0,0.34593767]
[1719152578458,0.46518679,64304.0,64303.0,0.34593767]
[1719152580195,0.256361,64304.0,64303.0,0.34593767]
[1719152580405,0.46583467,64304.0,64303.0,0.34593767]
[1719152580578,0.256361,64304.0,64303.0,0.34593767]
[1719152580786,0.46583473,64304.0,64303.0,0.34593767]
[1719152582079,0.46583473,64304.0,64303.0,0.29383767]
[1719152582305,0.46583473,64304.0,64303.0,0.34593767]
[1719152582504,0.77685673,64304.0,64303.0,0.34593767]
[1719152582938,0.77685673,64304.0,64303.0,0.29383767]
[1719152583090,0.7768561,64304.0,64303.0,0.34593767]
[1719152583534,0.77593755,64304.0,64303.0,0.34593767]
[1719152585982,0.567383,64304.0,64303.0,0.34593767]
[1719152586184,0.77598102,64304.0,64303.0,0.34593767]
[1719152588613,1.2688658,64304.0,64303.0,0.29383767]
[1719152588818,1.2588658,64304.0,64303.0,0.34593767]
[1719152589091,1.166705,64304.0,64303.0,0.34593767]
[1719152589320,1.25918827,64304.0,64303.0,0.34593767]
[1719152590863,1.25918827,64304.0,64303.0,0.29383767]
[1719152591066,1.25918827,64304.0,64303.0,0.34593767]
[1719152592360,1.2587335,64304.0,64303.0,0.34593767]
[1719152592751,1.25873303,64304.0,64303.0,0.34593767]
[1719152594112,1.37518541,64304.0,64303.0,0.34593767]
[1719152594321,1.25873303,64304.0,64303.0,0.34593767]
[1719152595031,0.94771103,64304.0,64303.0,0.34593767]
[1719152595562,0.65927791,64304.0,64303.0,0.34593767]
[1719152596282,0.77572776,64304.0,64303.0,0.34593767]
[1719152598432,0.567383,64304.0,64303.0,0.34593767]
[1719152598648,0.65966899,64304.0,64303.0,0.34593767]
[1719152600523,0.34864699,64304.0,64303.0,0.34593767]
[1719152601938,0.35119002,64304.0,64303.0,0.34593767]
[1719152602773,0.19243957,64304.0,64303.0,0.34593767]
[1719152604162,0.19243957,64304.0,64303.0,0.35593767]
[1719152604401,0.21128564,64304.0,64303.0,0.35593767]
[1719152604602,0.21147313,64304.0,64303.0,0.34593767]
[1719152605104,0.31147313,64304.0,64303.0,0.34593767]
[1719152605901,0.30984361,64304.0,64303.0,0.34593767]
[1719152606286,0.30984361,64304.0,64303.0,0.34593771]
[1719152607601,0.30988488,64304.0,64303.0,0.34593771]
[1719152607829,0.19529085,64304.0,64303.0,0.34593771]
[1719152608118,0.09529085,64304.0,64303.0,0.34593771]
[1719152608833,0.08663519,64304.0,64303.0,0.34593771]
[1719152610973,0.02900296,64304.0,64303.0,0.34593771]
[1719152611115,0.13041643,64306.0,64303.0,0.34593771]
[1719152611339,0.02898831,64305.0,64304.0,0.24196941]
[1719152611760,0.02898831,64305.0,64304.0,0.25248866]
[1719152611965,0.02898831,64305.0,64304.0,0.25264369]
[1719152612361,0.02898831,64305.0,64304.0,0.42154369]
[1719152614006,0.02888107,64305.0,64304.0,0.42154369]
[1719152614412,0.03288107,64305.0,64304.0,0.42154369]
[1719152614590,0.03988107,64305.0,64304.0,0.42254369]
[1719152615991,0.13988107,64305.0,64304.0,0.56124369]
[1719152616400,0.18646905,64305.0,64304.0,0.56124369]
[1719152616598,0.13988107,64305.0,64304.0,0.56124369]
[1719152617088,0.08678946,64305.0,64304.0,0.56124369]
[1719152617256,0.18678946,64305.0,64304.0,0.56124369]
[1719152617434,0.14021589,64305.0,64304.0,0.56124369]
[1719152618335,0.04021589,64305.0,64304.0,0.56124369]
[1719152620010,0.011,64305.0,64304.0,0.56124369]
[1719152620445,0.04140956,64305.0,64304.0,0.56124369]
[1719152621454,0.04143145,64305.0,64304.0,0.56124369]
[1719152621844,0.04143168,64305.0,64304.0,0.56124369]
[1719152622045,0.04143168,64305.0,64304.0,0.56217869]
[1719152622046,0.14143168,64305.0,64304.0,0.56217869]
[1719152622245,0.04228168,64305.0,64304.0,0.56217869]
[1719152624216,0.04228168,64305.0,64304.0,0.77693525]
[1719152624359,0.04228168,64305.0,64304.0,1.08795725]
[1719152624555,0.04228168,64305.0,64304.0,1.14005725]
[1719152624956,0.03528168,64305.0,64304.0,1.13905725]
[1719152625204,0.03128168,64305.0,64304.0,1.13905725]
[1719152625426,0.03828168,64305.0,64304.0,1.14005725]
[1719152625604,0.04128168,64305.0,64304.0,1.14005725]
[1719152626465,0.04125879,64305.0,64304.0,1.14005725]
[1719152627018,0.03425879,64305.0,64304.0,1.13905725]
[1719152627223,0.03125879,64305.0,64304.0,1.13905725]
[1719152627879,0.03225879,64305.0,64304.0,1.14605725]
[1719152628102,0.03225879,64305.0,64304.0,1.14905725]
[1719152628399,0.03125879,64305.0,64304.0,1.14205725]
[1719152628583,0.03225879,64305.0,64304.0,1.14605725]
[1719152629346,0.00185,64305.0,64304.0,1.14605725]
[1719152629745,0.03211079,64305.0,64304.0,1.14605725]
[1719152630141,0.0321107,64305.0,64304.0,1.14605725]
[1719152630511,0.0321107,64305.0,64304.0,1.15005725]
[1719152633458,0.04205034,64317.0,64316.0,0.08]
[1719152633669,0.58404166,64320.0,64316.0,0.08]
[1719152633670,0.4678,64320.0,64316.0,0.28466112]
[1719152633976,0.165475,64319.0,64317.0,0.16303848]
[1719152634265,0.22870551,64318.0,64317.0,0.19256783]
[1719152635164,0.35480551,64318.0,64317.0,0.19272286]
[1719152635565,0.61728251,64318.0,64317.0,0.19372286]
[1719152635758,0.61729689,64318.0,64317.0,0.19372286]
[1719152636906,0.61729689,64318.0,64317.0,0.19372279]
[1719152637816,0.62729689,64318.0,64317.0,0.19472279]
[1719152637989,0.65662963,64318.0,64317.0,0.19472279]
[1719152638795,0.65669335,64318.0,64317.0,0.19472279]
[1719152639396,0.65660779,64318.0,64317.0,0.19472279]
[1719152640588,0.37092211,64318.0,64317.0,0.24682279]
[1719152641195,0.37090963,64318.0,64317.0,0.24682279]
[1719152641396,0.20841831,64318.0,64317.0,0.24682279]
[1719152643360,0.25489416,64318.0,64317.0,0.24682279]
[1719152643518,0.28152717,64318.0,64317.0,0.24682279]
[1719152644172,0.14633274,64318.0,64317.0,0.24682283]
[1719152644375,0.18201115,64318.0,64317.0,0.24682283]
[1719152644592,0.28201115,64318.0,64317.0,0.24682283]
[1719152645173,0.23553447,64318.0,64317.0,0.24682283]
[1719152645436,0.28201115,64318.0,64317.0,0.24682283]
[1719152645578,0.28201115,64318.0,64317.0,0.23634547]
[1719152646127,0.28201115,64318.0,64317.0,0.24680919]
[1719152647174,0.14633274,64318.0,64317.0,0.19470919]
[1719152647375,0.28254414,64318.0,64317.0,0.19470919]
[1719152647632,0.28254414,64318.0,64317.0,0.24680919]
[1719152647633,0.19281184,64318.0,64317.0,0.24680919]
[1719152647788,0.28254455,64318.0,64317.0,0.24680919]
[1719152650379,0.28241694,64318.0,64317.0,0.24680919]
[1719152651463,0.28241694,64318.0,64317.0,0.42020919]
[1719152651877,0.28241694,64318.0,64317.0,0.55280919]
[1719152652451,0.28241694,64318.0,64317.0,0.50070919]
[1719152652648,0.28241694,64318.0,64317.0,0.42020919]
[1719152653467,0.282958,64318.0,64317.0,0.42020919]
[1719152654519,0.23646481,64318.0,64317.0,0.42020919]
[1719152655067,0.22946481,64318.0,64317.0,0.41920919]
[1719152655203,0.21946481,64318.0,64317.0,0.41820919]
[1719152655540,0.22246481,64318.0,64317.0,0.41920919]
[1719152655829,0.23146481,64318.0,64317.0,0.42020919]
[1719152656054,0.19013207,64318.0,64317.0,0.41820919]
[1719152656495,0.19713207,64318.0,64317.0,0.41920919]
[1719152656723,0.20318652,64318.0,64317.0,0.42020919]
[1719152657171,0.20360977,64318.0,64317.0,0.42020919]
[1719152657615,0.27336872,64318.0,64317.0,0.42020919]
[1719152658102,0.27336872,64318.0,64317.0,0.36810919]
[1719152658336,0.27337784,64318.0,64317.0,0.42020919]
[1719152659885,0.27292354,64318.0,64317.0,0.42020919]
[1719152660102,0.27292354,64318.0,64317.0,0.40974547]
[1719152660545,0.27292354,64318.0,64317.0,0.42020919]
[1719152660546,0.20313752,64318.0,64317.0,0.42020919]
[1719152661704,0.29618555,64318.0,64317.0,0.42020919]
[1719152662980,0.296219,64318.0,64317.0,0.42020919]
[1719152663384,0.296219,64318.0,64317.0,0.36810919]
[1719152663665,0.296219,64318.0,64317.0,0.24680919]
[1719152664829,0.296219,64318.0,64317.0,0.55000919]
[1719152665431,0.20312502,64318.0,64317.0,0.55000919]
[1719152665835,0.11,64318.0,64317.0,0.55000919]
[1719152666033,0.10323805,64318.0,64317.0,0.55000919]
[1719152666235,0.20323805,64318.0,64317.0,0.55000919]
[1719152666454,0.20323805,64318.0,64317.0,0.53954547]
[1719152666833,0.20323805,64318.0,64317.0,0.55000919]
[1719152667764,0.20335043,64318.0,64317.0,0.55000919]
[1719152668505,0.31973943,64318.0,64317.0,0.55000919]
[1719152668702,0.29648454,64318.0,64317.0,0.56000919]
[1719152668902,0.20335043,64318.0,64317.0,0.56000919]
[1719152669102,0.27320403,64318.0,64317.0,0.56000919]
[1719152669306,0.13895895,64318.0,64317.0,0.56000919]
[1719152670920,0.08553074,64318.0,64317.0,1.02937893]
[1719152671061,0.08553074,64318.0,64317.0,0.85237893]
[1719152671062,0.03895895,64318.0,64317.0,0.85237893]
[1719152671257,0.03895895,64318.0,64317.0,1.36333793]
[1719152671617,0.03895895,64318.0,64317.0,1.08569275]
[1719152672005,0.01,64318.0,64317.0,1.28569275]
[1719152672203,0.007,64318.0,64317.0,1.08469275]
[1719152672439,0.007,64318.0,64317.0,1.63729693]
[1719152672633,0.03632268,64318.0,64317.0,1.63729693]
[1719152672807,0.03632268,64318.0,64317.0,1.83729693]
[1719152673021,0.03632268,64318.0,64317.0,1.63729693]
[1719152673389,0.02932268,64318.0,64317.0,1.83629693]
[1719152673598,0.1,64327.0,64326.0,0.09]
[1719152673801,0.0281622,64327.0,64326.0,0.58776112]
[1719152674071,0.0281622,64327.0,64326.0,1.49094318]
[1719152674245,0.00085,64333.0,64332.0,0.5031]
[1719152674451,0.00085,64333.0,64332.0,0.70776112]
[1719152674618,0.00085,64333.0,64332.0,0.71820799]
[1719152674818,0.02849905,64333.0,64332.0,0.71820799]
[1719152675019,0.02849905,64333.0,64332.0,0.80761404]
[1719152675220,0.02849671,64333.0,64332.0,0.80761404]
[1719152675465,0.00085,64333.0,64332.0,0.80761404]
[1719152675697,0.03112369,64333.0,64332.0,0.80861404]
[1719152675901,0.03112369,64333.0,64332.0,0.80876904]
[1719152676295,0.00085,64338.0,64337.0,0.08]
[1719152676493,0.00085,64338.0,64337.0,0.28466112]
[1719152676639,0.00085,64338.0,64337.0,0.29509943]
[1719152677013,0.00085,64338.0,64337.0,0.29525443]
[1719152677292,0.00085,64338.0,64337.0,0.46225443]
[1719152677505,0.00085,64338.0,64337.0,0.55166272]
[1719152677734,0.01385,64338.0,64337.0,0.55366272]
[1719152678180,0.01385,64338.0,64337.0,0.39666272]
[1719152678405,0.01385,64338.0,64337.0,0.69586272]
[1719152679819,0.01385,64338.0,64337.0,0.69586264]
[1719152680466,0.01085,64338.0,64337.0,0.69486264]
[1719152680795,0.00085,64338.0,64337.0,0.87229364]
[1719152681211,0.00485,64338.0,64337.0,0.87229364]
[1719152681667,0.00085,64338.0,64337.0,0.87229364]
[1719152681915,0.00085,64338.0,64337.0,0.87429364]
[1719152682142,0.00085,64338.0,64337.0,0.9145392]
[1719152682376,0.00085,64338.0,64337.0,1.2254022]
[1719152682602,0.00085,64338.0,64337.0,1.5362652]
[1719152683025,0.00085,64338.0,64337.0,1.7362652]
[1719152683262,0.00085,64338.0,64337.0,2.2111282]
[1719152683504,0.00085,64338.0,64337.0,1.9002652]
[1719152683999,0.00085,64338.0,64337.0,2.2111282]
[1719152686014,0.00085,64338.0,64337.0,2.2733862]
[1719152686219,0.00085,64338.0,64337.0,2.37338618]
[1719152687255,0.00085,64338.0,64337.0,2.37138618]
[1719152687618,0.00085,64338.0,64337.0,2.38138618]
[1719152687825,0.00085,64338.0,64337.0,2.37738618]
[1719152688358,0.00185,64338.0,64337.0,2.39138618]
[1719152688559,0.00185,64338.0,64337.0,2.38138618]
[1719152688939,0.00185,64338.0,64337.0,2.39538618]
[1719152689366,0.00185,64338.0,64337.0,2.74488618]
[1719152696913,0.00085,64351.0,64350.0,0.64564556]